Cogmind - Beta 15 @@@ ROGUE MODE // 2025.07.14 @ 16:04:21 Player: nostromo Result: Destroyed by L-41 Fighter with Axe Performance ------------- Evolutions (4) 2000 Regions Visited (4) 800 Robots Destroyed (8) 40 Value Destroyed (328) 328 Prototype IDs (6) 120 Alien Tech Used (0) 0 Bonus (785) 785 TOTAL SCORE: 4073 Bonus ------- Registered with UFD 300 Met Optimus in HQ 500 Friendly Fire -15 Cogmind --------- Core Integrity 0/850 Matter 164/300 Energy 100/100 System Corruption 0% Temperature Cool (0) Movement Core (350) Ox6 Location -6/Factory Parts ------- > --- POWER (2) -------- (None) > --- PROPULSION (4) --- (None) > --- UTILITY (5) ------ Large Storage Unit Improved Terrain Scan Processor > --- WEAPON (4) ------- (None) > --- INVENTORY (15) --- Scrap Suit Signal Interpreter Improved Terrain Scan Processor Improved Hacking Suite Drone Bay (2/2) Scrap Shield Fragment (49) DRS Beacon (Ready) Peak State ------------ > --- POWER ------------ Light Deuterium Engine Angular Momentum Engine > --- PROPULSION ------- Wheel Compact Wheel > --- UTILITY ---------- Large Storage Unit Large Battery Deep Structural Scanner Improved Terrain Scan Processor Focal Shield > --- WEAPON ----------- Bolt Gun Heavy Machine Gun Heavy Machine Gun Battle Cannon > --- INVENTORY -------- Scrap Suit Signal Interpreter Improved Terrain Scan Processor Improved Hacking Suite Drone Bay Scrap Shield Fragment DRS Beacon [Rating: 40] Favorites ----------- Power Light Ion Engine Engine Light Ion Engine Propulsion Compact Wheel Treads Overtuned Treads Leg Aluminum Leg Wheel Compact Wheel Utility Small Storage Unit Device Tractor Beam Storage Small Storage Unit Processor Improved Terrain Scan Processor Weapon Assault Rifle Energy Gun EM Pulse Gun Ballistic Gun Assault Rifle Ballistic Cannon Battle Cannon Build | -11 -10 -10 -8 -6 ------- Run | Yrd Mat Sub Scr Fac Slots Evolved 8 | . . . . 8 Power 1 | . . . . 1 Propulsion 2 | . . . . 2 Utility 3 | . . . . 3 Weapon 2 | . . . . 2 Parts Attached 33 | 6 1 1 13 12 Power 5 | 1 . 1 2 1 Engine 5 | 1 . 1 2 1 Core . | . . . . . Reactor . | . . . . . Propulsion 12 | 2 . . 8 2 Treads 3 | . . . 3 . Leg 5 | . . . 3 2 Wheel 4 | 2 . . 2 . Hover . | . . . . . Flight . | . . . . . Utility 8 | 1 1 . . 6 Device 4 | . 1 . . 3 Storage 3 | 1 . . . 2 Processor 1 | . . . . 1 Hackware . | . . . . . Protection . | . . . . . Artifact . | . . . . . Weapon 8 | 2 . . 3 3 Energy Gun 1 | 1 . . . . Energy Cannon . | . . . . . Ballistic Gun 6 | 1 . . 3 2 Ballistic Cannon 1 | . . . . 1 Launcher . | . . . . . Special Weapon . | . . . . . Impact Weapon . | . . . . . Slashing Weapon . | . . . . . Piercing Weapon . | . . . . . Special Melee Weapon . | . . . . . Unidentified Prototypes . | . . . . . Corrupted Parts 1 | . . . 1 . System Corruption 2 | . . . 2 . Parts Lost 20 | . . . 7 13 Power 3 | . . . 1 2 Propulsion 7 | . . . 3 4 Utility 4 | . . . 1 3 Weapon 6 | . . . 2 4 Highest Loss Streak 10 | . . . 4 10 To Critical Strikes . | . . . . . Average Backups 5 | 2 4 5 5 4 Power . | . 1 . . . Propulsion 1 | 1 2 2 1 . Utility 2 | . . 1 2 4 Weapon 1 | . 1 2 1 . Tool/Special . | . . . . . Unused Backups 5 | . . . . 5 Power . | . . . . . Propulsion . | . . . . . Utility 5 | . . . . 5 Weapon . | . . . . . Tool/Special . | . . . . . Average Slot Usage (%) 87 | . 87 99 94 66 Engine 12 | . 14 13 13 9 Treads 1 | . . . 2 . Leg 3 | . . . 6 2 Wheel 18 | . 28 28 18 8 Device 10 | . 2 14 12 9 Storage 13 | . 14 14 14 10 Processor 1 | . . . . 5 Energy Gun 9 | . 14 14 11 . Ballistic Gun 14 | . 14 14 13 14 Peak Build Rating 40 | 6 7 8 15 40 Average Rating 13 | 4 6 7 8 31 On Entrance 5 | . 6 7 7 9 Naked Turns . | . . . . . Heaviest Build 57 | 14 15 15 15 57 Greatest Support 36 | 32 32 32 36 30 Greatest Overweight (x) 15 | . . . 1 15 Average Overweight (x) . | . . . . 1 Largest Inventory Capacity 15 | 8 8 8 8 15 Average Capacity 9 | 7 8 8 8 14 Most Carried 12 | 5 6 8 8 12 Average Carried 7 | 2 4 7 7 7 Final Capacity 15 | 8 8 8 8 15 Final Carried 8 | 3 6 7 8 8 Class Distribution -------------------- 82% | Mutant 14% | Scavenger-Tank 3% | Tank Dominant Class ---------------- Mutant | -10/Materials Mutant | -10/Subcaves Mutant | -8/Scraptown Scavenger-Tank | -6/Factory Resources | -11 -10 -10 -8 -6 ----------- Run | Yrd Mat Sub Scr Fac Matter Collected 581 | 254 25 40 204 58 Remotely 199 | . 19 40 140 . Salvage Created 380 | . 30 163 97 90 Parts 21 | . 1 10 5 5 Haulers Intercepted . | . . . . . Recyclers Shooed . | . . . . . Parts Field Recycled . | . . . . . Retrieved Matter . | . . . . . Parts Self-Destructed 22 | . . 22 . . Prevented 2 | . . 2 . . Kills | -11 -10 -10 -8 -6 ------- Run | Yrd Mat Sub Scr Fac Combat Hostiles Destroyed 7 | . . 3 2 2 Guns 7 | . . 3 2 2 Classes Destroyed 6 | . 1 2 2 1 Watcher 1 | . 1 . . . Grunt 3 | . . 2 . 1 Programmer 1 | . . . . 1 Subdweller 1 | . . 1 . . Federalist 1 | . . . 1 . Scrapper 1 | . . . 1 . Best Kill Streak 1 | . 1 1 1 1 Combat Bots Only 1 | . . 1 1 1 Max Kills in Single Turn 1 | . 1 1 1 1 Gunslinging . | . . . . . Exploded . | . . . . . Melee . | . . . . . Uniques/NPCs Destroyed . | . . . . . Combat | -11 -10 -10 -8 -6 -------- Run | Yrd Mat Sub Scr Fac Hostile Shots Fired 258 | . . 10 84 164 Missed 67 | . . . 18 49 Hits 191 | . . 10 66 115 Melee 1 | . . . . 1 Projectile 190 | . . 10 66 114 Critical Strikes 6 | . . . . 6 Damage Taken 3101 | . . 122 922 2057 Core 1060 | . . 23 177 860 Absorbed by Shields . | . . . . . Core Remaining (%) 60 | 100 . . 20 . Volleys Fired 43 | . 3 10 20 10 Largest 4 | . 2 2 2 4 Hottest 113 | . 60 60 60 113 Shots Fired 102 | . 6 20 37 39 Gun 92 | . 6 20 37 29 Cannon 10 | . . . . 10 Launcher . | . . . . . Special . | . . . . . Kinetic 75 | . 3 10 23 39 Thermal . | . . . . . Explosive . | . . . . . Electromagnetic 27 | . 3 10 14 . Robot Hit Streak 8 | . 2 4 8 6 Robot Miss Streak 5 | . 3 4 5 4 Penetration Max . | . . . . . Secondary Targets 1 | . . . 1 . Max Gunslinging Chain 1 | . . . 1 . Shots Hit Robots 55 | . 2 11 21 21 Core Hits 23 | . 1 4 11 7 Critical Kills . | . . . . . Critical Parts Destroyed . | . . . . . Critical Strikes 1 | . . . . 1 Blast 1 | . . . . 1 Melee Attacks . | . . . . . Impact . | . . . . . Slashing . | . . . . . Piercing . | . . . . . Sneak Attacks . | . . . . . Combat Hostiles . | . . . . . Follow-up Attacks . | . . . . . Damage Inflicted 956 | . 31 140 293 492 Guns 842 | . 31 140 291 380 Cannons 112 | . . . . 112 Explosions . | . . . . . Melee . | . . . . . Ramming 2 | . . . 2 . Kinetic 819 | . 11 89 227 492 Thermal . | . . . . . Explosive . | . . . . . Electromagnetic 135 | . 20 51 64 . Impact . | . . . . . Slashing . | . . . . . Piercing . | . . . . . Highest Corruption 3 | . . . 3 . Average Corruption 1 | . . . 1 . Corruption Purged . | . . . . . Corruption Blocked . | . . . . . Effects 1 | . . . 1 . Data Loss (minor) 1 | . . . 1 . Overload Shots . | . . . . . Overflow Damage . | . . . . . Projectiles . | . . . . . Explosions . | . . . . . Melee . | . . . . . Knockbacks 2 | . . . . 2 Impact . | . . . . . Kinetic 2 | . . . . 2 Secondary . | . . . . . Self-Inflicted Damage 1 | . . . 1 . Shots . | . . . . . Rammed 2 | . . . 2 . Targets Rammed 2 | . . . 2 . Kicked . | . . . . . Crushed . | . . . . . Highest Temperature 496 | . . . 49 496 Average Temperature 142 | . . . 17 217 Received Heat Transfer 1566 | . . 66 516 984 Effects 8 | . . . . 8 Shutdowns 4 | . . . . 4 Interference 1 | . . . . 1 Short Circuit 1 | . . . . 1 Damage (minor) 1 | . . . . 1 Damage (major) 1 | . . . . 1 Siege Activations . | . . . . . Martial Activations . | . . . . . Shielding Activations . | . . . . . Robots Disrupted . | . . . . . Combat Hostiles . | . . . . . Robots Corrupted . | . . . . . Combat Hostiles . | . . . . . Parts Fried . | . . . . . Impact Corruptions . | . . . . . Robots Melted . | . . . . . Combat Hostiles . | . . . . . Parts Melted 2 | . . 1 1 . Heat Transferred . | . . . . . Parts Sabotaged . | . . . . . Parts Stolen . | . . . . . Parts Stripped . | . . . . . Power Chain Reactions . | . . . . . Alert | -11 -10 -10 -8 -6 ------- Run | Yrd Mat Sub Scr Fac Maximum Alert Level . | . . . . . Low Security (%) 100 | 100 100 . . 100 Level 1 . | . . . . . Level 2 . | . . . . . Level 3 . | . . . . . Level 4 . | . . . . . Level 5 . | . . . . . High Security . | . . . . . Max Security . | . . . . . Peak Influence 60 | . . . . 60 Initial . | . . . . . Average 3 | . . . . 5 Influence Increases 197 | . 7 50 . 140 Destroy 0b10 Robot/C 80 | . . 40 . 40 Destroy 0b10 Robot/NC 5 | . 5 . . . Destroy Leader 22 | . 2 10 . 10 Lose Combat Pursuer 90 | . . . . 90 Influence Decreases 181 | . 7 40 10 124 Entered New Map 10 | . . . 10 . Time Decay 124 | . 7 40 . 77 Lost Part 47 | . . . . 47 Squads Dispatched 3 | . 1 . . 2 Investigation 1 | . . . . 1 Extermination 1 | . . . . 1 Reinforcement 1 | . 1 . . . Assault . | . . . . . Garrison . | . . . . . Intercept . | . . . . . Searches Triggered . | . . . . . Construction Impeded . | . . . . . Haulers Reinforced . | . . . . . Active Scanning Responses . | . . . . . Cargo Convoy Interrupts . | . . . . . Stealth | -11 -10 -10 -8 -6 --------- Run | Yrd Mat Sub Scr Fac Distress Signals . | . . . . . Communications Jammed . | . . . . . Distress Signals . | . . . . . Times Spotted 60 | . 3 5 38 14 Peak Tracking Total 11 | . 2 2 11 9 Tactical Retreats 3 | . . . . 3 Traps | -11 -10 -10 -8 -6 ------- Run | Yrd Mat Sub Scr Fac Traps Triggered 1 | . . . . 1 Indirectly . | . . . . . Trap Hack Attempts . | . . . . . Triggered . | . . . . . Disarmed . | . . . . . Reprogrammed . | . . . . . Reused . | . . . . . Traps Extracted . | . . . . . Installed . | . . . . . Triggered . | . . . . . Machines | -11 -10 -10 -8 -6 ---------- Run | Yrd Mat Sub Scr Fac Machines Disabled . | . . . . . Max in Single Turn . | . . . . . Machines Repaired . | . . . . . Machines Dismantled . | . . . . . Machines Sabotaged . | . . . . . Overloaded Fab Kills . | . . . . . Hacking | -11 -10 -10 -8 -6 --------- Run | Yrd Mat Sub Scr Fac Machines Accessed 7 | . 2 . 4 1 Terminals 1 | . 1 . . . Fabricators 1 | . . . . 1 Repair Stations . | . . . . . Recycling Units 1 | . 1 . . . Scanalyzers . | . . . . . Garrison Access . | . . . . . Total Hacks 36 | . 6 . 29 1 Successful 33 | . 3 . 29 1 Failed 3 | . 3 . . . Catastrophic . | . . . . . Database Lockouts . | . . . . . Manual . | . . . . . Terminals 5 | . 5 . . . Fabricators 1 | . . . . 1 Repair Stations . | . . . . . Recycling Units 1 | . 1 . . . Scanalyzers . | . . . . . Garrison Access . | . . . . . Terminal Hacks 31 | . 2 . 29 . Record 30 | . 2 . 28 . Proto ID Catalog 1 | . . . 1 . Fabricator Hacks 1 | . . . . 1 Network Status 1 | . . . . 1 Repair Station Hacks . | . . . . . Recycling Unit Hacks 1 | . 1 . . . Report Inventory 1 | . 1 . . . Scanalyzer . | . . . . . Garrison Access Hacks . | . . . . . Unauthorized Hacks . | . . . . . Terminals . | . . . . . Fabricators . | . . . . . Repair Stations . | . . . . . Recycling Units . | . . . . . Scanalyzers . | . . . . . Garrison Access . | . . . . . Data Cores Recovered . | . . . . . Used . | . . . . . Hacking Detections 2 | . 2 . . . Full Trace Events 1 | . 1 . . . Feedback Events . | . . . . . Feedback Blocked . | . . . . . Robot Schematics Acquired . | . . . . . Robots Built . | . . . . . Authchips . | . . . . . Time . | . . . . . Total Robot Build Rating . | . . . . . Part Schematics Acquired . | . . . . . Parts Built . | . . . . . Authchips . | . . . . . Time . | . . . . . Total Part Build Rating . | . . . . . Parts Repaired . | . . . . . Time . | . . . . . Parts Recycled . | . . . . . Recycled Matter . | . . . . . Retrieved Matter . | . . . . . Retrieved Components . | . . . . . Parts Scanalyzed . | . . . . . Part Schematics Acquired . | . . . . . Parts Damaged . | . . . . . Bothacking | -11 -10 -10 -8 -6 ------------ Run | Yrd Mat Sub Scr Fac Used RIF Installer . | . . . . . Robots Hacked . | . . . . . Non-combat . | . . . . . Combat . | . . . . . Robot Hacks Applied . | . . . . . Relay Couplers Released . | . . . . . Fabnet Peak Effective % . | . . . . . Robots Rewired . | . . . . . Allies Hacked . | . . . . . Hacks Repelled . | . . . . . Allies | -11 -10 -10 -8 -6 -------- Run | Yrd Mat Sub Scr Fac Total Allies . | . . . . . Largest Group . | . . . . . Highest-Rated Group . | . . . . . Highest-Rated Ally . | . . . . . Total Orders . | . . . . . Ally Attacks . | . . . . . Total Damage . | . . . . . Kills . | . . . . . Allies Corrupted . | . . . . . Allies Melted 6 | . . . 6 . Intel | -11 -10 -10 -8 -6 ------- Run | Yrd Mat Sub Scr Fac Active Infowar (turns) 421 | . . . . 421 Structural 421 | . . . . 421 Robot Analysis Total . | . . . . . Derelict Logs Recovered . | . . . . . Drone Launches . | . . . . . Drone Recoveries . | . . . . . Exploration | -11 -10 -10 -8 -6 ------------- Run | Yrd Mat Sub Scr Fac Turns Passed 2713 | 65 236 352 1420 640 Spaces Moved 2143 | 63 214 199 1205 462 Core 72 | 23 . . 41 8 Treads 53 | . . . 53 . Legs 282 | . . . 198 84 Wheels 1736 | 40 214 199 913 370 Hover . | . . . . . Flight . | . . . . . Fastest Speed 50 | 50 100 100 80 90 Average Speed 107 | 81 100 100 103 126 Slowest Speed 800 | 100 100 100 140 800 Overloaded Moves . | . . . . . Propulsion Burnouts . | . . . . . Robots Hopped . | . . . . . Potential Cave-ins . | . . . . . Cave-ins Triggered . | . . . . . Exploration Rate (%) 28 | 4 34 14 76 15 Regions Visited 4 Branch Regions 2 Pre-discovered Areas . | . . . . . Known Exits Taken 1 | . . . 1 . Unknown Exits Taken 3 | 1 1 1 . . Scrap Searched 1 | . . . 1 . Spaces Dug . | . . . . . Terrain Destroyed . | . . . . . Melee . | . . . . . Projectile . | . . . . . AOE . | . . . . . Terrain Rammed . | . . . . . Walls Destroyed . | . . . . . Machines Disabled . | . . . . . Actions | -11 -10 -10 -8 -6 --------- Run | Yrd Mat Sub Scr Fac Total 2478 | 76 230 332 1347 493 Wait 210 | . 9 120 81 . Move 2139 | 62 213 198 1204 462 Hop . | . . . . . Pick Up 34 | 8 4 2 13 7 Fast Attach 8 | 1 . . 2 5 Attach 24 | 5 1 1 10 7 Detach . | . . . . . Swap 3 | . . . 3 . Drop 15 | . . 1 12 2 Fire 43 | . 3 10 20 10 Melee . | . . . . . Ram 2 | . . . 2 . Kick . | . . . . . Crush . | . . . . . Escape Stasis . | . . . . . Rewire . | . . . . . Trap . | . . . . . Miscellaneous . | . . . . . Route ------- -11/Scrapyard -10/Materials -10/Subcaves (discovered 3 exits: [*Mat] / [*Rec] / *Scr) -8/Scraptown (discovered 2 exits: *Fac x2) -6/Factory History --------- Turn | Location | Event 3 | -11/Scrapyard | Discovered new exit (range 15) 66 | -11/Scrapyard | Entered Materials 67 | -10/Materials | Met a group of wandering Federalists 300 | -10/Materials | Discovered new exit (range 3) 301 | -10/Materials | Build established: Mutant 302 | -10/Materials | Entered Subcaves 302 | -10/Subcaves | Accompanied by 1 ally 303 | -10/Subcaves | Continued accompanying wandering Federalists (5) 303 | -10/Subcaves | Approached by a straggling Scientist 468 | -10/Subcaves | Lost 3 allies 484 | -10/Subcaves | Discovered new exit (range 16) 501 | -10/Subcaves | Discovered new exit (range 15) 553 | -10/Subcaves | Wandering Federalist uncovered a shortcut to Scraptown 601 | -10/Subcaves | Lost 3 allies 654 | -10/Subcaves | Entered Scraptown 733 | -8/Scraptown | Visited The Evicted 847 | -8/Scraptown | Heard Great Nut preacher, LISTEN AND RECITE! 1090 | -8/Scraptown | Visited Awakened 1124 | -8/Scraptown | Visited UFD Registry 1124 | -8/Scraptown | Registered with UFD as "Phasecell" 1150 | -8/Scraptown | Visited Derelict Rescue Squad 1165 | -8/Scraptown | Found DRS Beacon 1186 | -8/Scraptown | Visited Curators Association 1239 | -8/Scraptown | Visited Science Guys 1288 | -8/Scraptown | Visited Abandonware Association 1298 | -8/Scraptown | Learned abandonware demo "SHUTEYE.EXE" 1298 | -8/Scraptown | Learned abandonware demo "KABOOM.EXE" 1348 | -8/Scraptown | Met Optimus 1348 | -8/Scraptown | Accepted into 0bPrime 1403 | -8/Scraptown | Visited DA-N13 Charitable Foundation 1434 | -8/Scraptown | Civil war broke out across Scraptown 1508 | -8/Scraptown | Identified exit to Factory 1509 | -8/Scraptown | Lost 9 allies 1570 | -8/Scraptown | Optimus destroyed in the chaos of civil war 1622 | -8/Scraptown | Lost 5 allies 1685 | -8/Scraptown | Lost 3 allies 1700 | -8/Scraptown | Found Scrap Suit 1902 | -8/Scraptown | Core integrity fell below 50% 1933 | -8/Scraptown | Visited Chapter 10 1939 | -8/Scraptown | Lost 4 parts (1p1u2w) 1943 | -8/Scraptown | Found Deep Structural Scanner 1975 | -8/Scraptown | Lost 5 allies 2074 | -8/Scraptown | Entered Factory 2074 | -6/Factory | Evolved 8 slots: Power x1, Propulsion x2, Utility x3, Weapon x2 2458 | -6/Factory | Build established: Scavenger-Tank 2596 | -6/Factory | Core integrity fell below 50% 2620 | -6/Factory | Lost 10 parts (2p1n3u4w) 2708 | -6/Factory | Core integrity fell below 20% 2714 | -6/Factory | Destroyed by L-41 Fighter with Axe Last Messages --------------- Acquired 58 matter. Overheating: System interference. Imp. Terrain Scan Processor temporarily disabled. U-05 Engineer lays Concrete. Deep Structural Scanner destroyed. Lrg. Battery destroyed. Critical hit (Burn: +37). Lgt. Deuterium Engine destroyed. Angular Momentum Engine destroyed. Critical hit (Burn: +37). Acquired Carbon-fiber Leg. R-10 Processor collects Lgt. Angular Momentum Engine. Critical hit (Burn: +37). Carbon-fiber Leg destroyed. Critical hit (Burn: +37). Slug penetrates Wall. Penetrated by Slug. K-01 Serf collects debris. Map ----- +----------------------------------------------------+ | ???????????????????????????????????????????????? | | ???????????????????????????????????????????????? | | ???????????????????????????????????????????????? | | ???????????????????????????????????????????????? | | ???????????????????????????????????????????????? | | ???????????????????????????????????????????????? | | ???????????????????????????????????????????????? | | ???????????????????????????????????????????????? | | ???????????????????????????????????????????????? | | ???????????????????????????????????????????????? | | ???????????????????????????????????????????????? | | ???????????????????????????????????????????????? | | ????????????????????#??????????????????????????? | | ????????????????????# ?????????????????????????? | | ????????????????????# "????????????????????????? | | ??????????????#?????# ""???????????????????????? | | ??????????? ???# ""???????????????????????? | | ??????????? ??? ???????????????????????? | | ?????????? ??? ???????????????????????? | | ??????????? ?? ???????????????????????? | | ????????????? ??? ???????????? ??? ###### | | ??????????????# ?? ??????????? ? ###### | | ??????????????# ###+########### ###### | | ??????????????# h ###### | | ??????????????# ### | | ??????????????# @ ### | | ??????????????# gl k ### | | ??????????????# g k ### | | ??????????????#########+##### ### | | ??????????????????# # ### | | ??????????????????# """ # ### | | ??????????????????# "R # ### | | ??????????????????# """ =/ / ### | | ??????????????????# "" /* # ###! | | ??????????????????# # ### | | ??????????????????# # ### | | ??????????????????# # ###### | | ??????????????????# ######### | | ??????????????????##?????#### | | ?????????????????????????#### !! | | ?????????????????????????#### !! | | ???????????????#######???#### % | | ???????????????# !######## ! "" | | ???????????????# ######## F" | | ???????????????# " " | | ???????????????# ############### "" | | ???????????????# ############### % | | ???????????????### ################# | | ??????????########+################# #### | | ??????????# ! #??????######/######## | +----------------------------------------------------+ Best States ------------- Heat Dissipation 37 Energy Generation 27 Energy Capacity 540 Matter Stores 300 Matter Capacity 300 Sight Range 16 Terrain Scan Density 110 Resistance: KI 20 Evasion (%) 55 Recoil Reduction 2 Item Schematics ----------------- None Robot Schematics ------------------ None Fabricated ------------ Nothing Repaired ---------- Nothing Alien Tech Used ----------------- None Achievements -------------- Librarian Slippery One Use The Force Challenges ------------ None Game ------ Seed VoltaicChipCapacitor Manual? 0 Play Time 01:00:00 Cumulative 8.5 hours Start 2025.07.14 @ 15:01:05 End 2025.07.14 @ 16:04:21 Sessions 1 Manual Loads 0 Difficulty Rogue Special Mode None Game No. 15 Rogue 15 Adventurer 0 Explorer 0 Win Type - Total 0 Types 0/0/0/0/0/0/0/0/0/0 Lore% 8 Gallery% 15 Achievement% 14 Wizard Run 0 Options --------- Layout 1 ASCII 0 Keyboard 0 Movement Mouse Keybinds 0 Fullscreen 1 Font 32/SmallcapsGlow Map View 50x35 Zoom Use 0% Tactical HUD 0 Map Filters NONE Filters NONE Steam 1 RUN: a174538c-8b66-49c9-9249-ec09892f10b8